fUSD/lending_fUSD_20250812
["ID","MTS","AMOUNT","RATE_DAILY","PERIOD"]
[378778207,1755012879271,-780.0,0.00042191,30]
[378778208,1755012879281,-400.0,0.00042191,30]
[378778209,1755012879291,-400.0,0.00042191,30]
[378778210,1755012879300,-400.0,0.00042191,30]
[378778211,1755012879311,-400.0,0.00042191,30]
[378778212,1755012879321,-388.22,0.00042191,30]
[378778213,1755012879331,-481.80863617,0.00042191,30]
[378778214,1755012879342,-400.0,0.00042191,30]
[378778215,1755012879352,-400.0,0.00042191,30]
[378778216,1755012879361,-400.0,0.00042191,30]
[378778217,1755012879371,-400.0,0.00042191,30]
[378778218,1755012879382,-400.0,0.00042191,30]
[378778219,1755012879392,-400.0,0.00042191,30]
[378778220,1755012879402,-400.0,0.00042191,30]
[378778221,1755012879412,-400.0,0.00042191,30]
[378778222,1755012879421,-400.0,0.00042191,30]
[378778223,1755012879431,-400.0,0.00042191,30]
[378778224,1755012879442,-400.0,0.00042191,30]
[378778225,1755012879452,-393.96,0.00042191,30]
[378778226,1755012879462,-400.0,0.00042191,30]
[378778227,1755012879472,-199.96,0.00042191,30]
[378778228,1755012879482,-463.76,0.00042191,30]
[378778229,1755012879492,-228.0,0.0004229,2]
[378778230,1755012879504,-216.0,0.000423,2]
[378778231,1755012879513,-331.08,0.00042329,30]
[378778232,1755012879523,-153.0,0.000424,120]
[378778233,1755012879532,-500.0,0.00042464,30]
[378778234,1755012879542,-534.22,0.00042464,30]
[378778235,1755012879552,-534.22,0.00042464,30]
[378778236,1755012879561,-300.0,0.00042464,30]
[378778237,1755012879571,-300.0,0.00042464,30]
[378778238,1755012879581,-400.0,0.00042465,30]
[378778239,1755012879591,-546.18,0.00042465,30]
[378778240,1755012879601,-400.0,0.00042465,30]
[378778241,1755012879611,-233.45,0.00042465,30]
[378778242,1755012879621,-409.25,0.00042465,30]
[378778243,1755012879631,-140.67347795,0.00042465,30]
[378778244,1755012879655,-259.32652205,0.00042465,30]
[378778245,1755012879664,-400.0,0.00042465,30]
[378778246,1755012879675,-400.0,0.00042465,30]
[378778247,1755012879684,-400.0,0.00042465,30]
[378778248,1755012879694,-400.0,0.00042465,30]
[378778249,1755012879704,-489.13,0.00042465,30]
[378778250,1755012879714,-400.0,0.00042465,30]
[378778251,1755012879725,-400.0,0.00042465,30]
[378778252,1755012879735,-400.0,0.00042465,30]
[378778253,1755012879745,-178.49,0.00042465,30]
[378778254,1755012879755,-400.0,0.00042465,30]
[378778255,1755012879765,-400.0,0.00042465,30]
[378778256,1755012879775,-400.0,0.00042465,30]
[378778257,1755012879786,-400.0,0.00042465,30]
[378778258,1755012879796,-400.0,0.00042465,30]
[378778259,1755012879805,-400.0,0.00042465,30]
[378778260,1755012879816,-400.0,0.00042465,30]
[378778261,1755012879827,-400.0,0.00042465,30]
[378778262,1755012879837,-400.0,0.00042465,30]
[378778263,1755012879847,-400.0,0.00042465,30]
[378778264,1755012879857,-453.05,0.00042465,30]
[378778265,1755012879867,-400.0,0.00042465,30]
[378778266,1755012879877,-400.0,0.00042465,30]
[378778267,1755012879887,-400.0,0.00042465,30]
[378778268,1755012879898,-400.0,0.00042465,30]
[378778269,1755012879908,-400.0,0.00042465,30]
[378778270,1755012879919,-400.0,0.00042465,30]
[378778271,1755012879929,-439.37,0.00042465,30]
[378778272,1755012879939,-400.0,0.00042465,30]
[378778273,1755012879949,-400.0,0.00042465,30]
[378778274,1755012879959,-400.0,0.00042465,30]
[378778275,1755012879969,-400.0,0.00042465,30]
[378778276,1755012879979,-400.0,0.00042465,30]
[378778277,1755012879989,-400.0,0.00042465,30]
[378778278,1755012880001,-400.0,0.00042465,30]
[378778279,1755012880011,-224.85,0.00042465,30]
[378778280,1755012880022,-400.0,0.00042465,30]
[378778281,1755012880032,-400.0,0.00042465,30]
[378778282,1755012880042,-400.0,0.00042465,30]
[378778283,1755012880052,-400.0,0.00042465,30]
[378778284,1755012880062,-400.0,0.00042465,30]
[378778285,1755012880073,-400.0,0.00042465,30]
[378778286,1755012880083,-400.0,0.00042465,30]
[378778287,1755012880093,-361.34,0.00042465,30]
[378778288,1755012880103,-400.0,0.00042465,30]
[378778289,1755012880113,-404.38899209,0.00042465,30]
[378778290,1755012880123,-400.0,0.00042465,30]
[378778291,1755012880133,-400.0,0.00042465,30]
[378778292,1755012880143,-548.31,0.00042465,30]
[378778293,1755012880153,-400.0,0.00042465,30]
[378778294,1755012880162,-400.0,0.00042465,30]
[378778295,1755012880172,-400.0,0.00042465,30]
[378778296,1755012880182,-400.0,0.00042465,30]
[378778297,1755012880193,-157.86,0.00042465,30]
[378778298,1755012880203,-400.0,0.00042465,30]
[378778299,1755012880213,-455.98,0.00042465,30]
[378778300,1755012880223,-536.91,0.00042465,30]
[378778301,1755012880233,-511.32,0.00042465,30]
[378778302,1755012880242,-400.0,0.00042465,30]
[378778303,1755012880256,-460.0,0.00042465,30]
[378778304,1755012880267,-400.0,0.00042465,30]
[378778305,1755012880277,-400.0,0.00042465,30]
[378778306,1755012880287,-456.30665599,0.00042465,30]
[378778307,1755012880297,-415.92,0.00042465,30]
[378778308,1755012880307,-400.0,0.00042465,30]
[378778309,1755012880317,-400.0,0.00042465,30]
[378778310,1755012880327,-472.22664797,0.00042465,30]
[378778311,1755012880337,-414.37,0.00042465,30]
[378778312,1755012880347,-400.0,0.00042465,30]
[378778313,1755012880359,-463.30624048,0.00042465,30]
[378778314,1755012880372,-400.0,0.00042465,30]
[378778315,1755012880386,-400.0,0.00042465,30]
[378778316,1755012880396,-400.0,0.00042465,30]
[378778317,1755012880408,-400.0,0.00042465,30]
[378778318,1755012880429,-400.0,0.00042465,30]
[378778319,1755012880439,-400.0,0.00042465,30]
[378778320,1755012880450,-400.0,0.00042465,30]
[378778321,1755012880459,-400.0,0.00042465,30]
[378778322,1755012880469,-400.0,0.00042465,30]
[378778323,1755012880479,-400.0,0.00042465,30]
[378778324,1755012880489,-400.0,0.00042465,30]
[378778325,1755012880500,-400.0,0.00042465,30]
[378778326,1755012880510,-400.0,0.00042465,30]
[378778327,1755012880520,-400.0,0.00042465,30]
[378778328,1755012880530,-400.0,0.00042465,30]
[378778329,1755012880540,-472.55,0.00042465,30]
[378778330,1755012880550,-448.01084641,0.00042465,30]
[378778331,1755012880560,-400.0,0.00042465,30]
[378778332,1755012880570,-400.0,0.00042465,30]
[378778333,1755012880580,-400.0,0.00042465,30]
[378778334,1755012880590,-400.0,0.00042465,30]
[378778335,1755012880600,-419.34,0.00042465,30]
[378778336,1755012880610,-400.0,0.00042465,30]
[378778337,1755012880620,-1000.0,0.00042465,2]
[378778338,1755012880630,-400.0,0.00042465,30]
[378778339,1755012880640,-400.0,0.00042465,30]
[378778340,1755012880651,-400.0,0.00042465,30]
[378778341,1755012880661,-400.0,0.00042465,30]
[378778342,1755012880671,-400.0,0.00042465,30]
[378778343,1755012880682,-366.32,0.00042465,30]
[378778344,1755012880692,-400.0,0.00042465,30]
[378778345,1755012880701,-400.0,0.00042465,30]
[378778346,1755012880711,-547.95,0.00042465,30]
[378778347,1755012880721,-400.0,0.00042465,30]
[378778348,1755012880731,-400.0,0.00042465,30]
[378778349,1755012880741,-400.0,0.00042465,30]
[378778350,1755012880751,-436.68,0.00042465,30]
[378778351,1755012880762,-805.09,0.00042465,30]
[378778352,1755012880772,-400.0,0.00042465,30]
[378778353,1755012880782,-152.88,0.00042465,30]
[378778354,1755012880792,-400.0,0.00042465,30]
[378778355,1755012880802,-400.0,0.00042465,30]
[378778356,1755012880812,-400.0,0.00042465,30]
[378778357,1755012880822,-433.68,0.00042465,30]
[378778358,1755012880832,-472.32,0.00042465,30]
[378778359,1755012880842,-400.0,0.00042465,30]
[378778360,1755012880852,-400.0,0.00042465,30]
[378778361,1755012880863,-400.0,0.00042465,30]
[378778362,1755012880873,-170.31586578,0.00042465,30]
[378778363,1755012880883,-400.0,0.00042465,30]
[378778364,1755012880892,-400.0,0.00042465,30]
[378778365,1755012880903,-400.0,0.00042465,30]
[378778366,1755012880913,-400.0,0.00042465,30]
[378778367,1755012880923,-400.0,0.00042465,30]
[378778368,1755012880932,-400.0,0.00042465,30]
[378778369,1755012880942,-400.0,0.00042465,30]
[378778370,1755012880952,-597.11,0.00042465,30]
[378778371,1755012880962,-400.0,0.00042465,30]
[378778372,1755012880972,-400.0,0.00042465,30]
[378778373,1755012880982,-400.0,0.00042465,30]
[378778374,1755012880992,-400.0,0.00042465,30]
[378778375,1755012881002,-400.0,0.00042465,30]
[378778376,1755012881013,-400.0,0.00042465,30]
[378778377,1755012881023,-400.0,0.00042465,30]
[378778378,1755012881033,-230.84289583,0.00042465,30]
[378778379,1755012881042,-400.0,0.00042465,30]
[378778380,1755012881052,-343.33,0.00042465,30]
[378778381,1755012881063,-400.0,0.00042465,30]
[378778382,1755012881072,-478.43,0.00042465,30]
[378778383,1755012881082,-400.0,0.00042465,30]
[378778384,1755012881092,-400.0,0.00042465,30]
[378778385,1755012881102,-400.0,0.00042465,30]
[378778386,1755012881111,-400.0,0.00042465,30]
[378778387,1755012881121,-400.0,0.00042465,30]
[378778388,1755012881131,-400.0,0.00042465,30]
[378778389,1755012881141,-400.0,0.00042465,30]
[378778390,1755012881151,-400.0,0.00042465,30]
[378778391,1755012881161,-400.0,0.00042465,30]
[378778392,1755012881171,-400.0,0.00042465,30]
[378778393,1755012881181,-400.0,0.00042465,30]
[378778394,1755012881191,-400.0,0.00042465,30]
[378778395,1755012881202,-400.0,0.00042465,30]
[378778396,1755012881212,-400.0,0.00042465,30]
[378778397,1755012881424,-400.0,0.00042465,30]
[378778398,1755012881442,-438.72,0.00042465,30]
[378778399,1755012881451,-400.0,0.00042465,30]
[378778400,1755012881461,-400.0,0.00042465,30]
[378778401,1755012881471,-400.0,0.00042465,30]
[378778402,1755012881481,-400.0,0.00042465,30]
[378778403,1755012881490,-400.0,0.00042465,30]
[378778404,1755012881500,-400.0,0.00042465,30]
[378778405,1755012881510,-400.0,0.00042465,30]
[378778406,1755012881520,-400.0,0.00042465,30]
[378778407,1755012881530,-400.0,0.00042465,30]
[378778408,1755012881540,-543.14,0.00042465,30]
[378778409,1755012881550,-289.17893461,0.00042465,30]
[378778410,1755012881560,-400.0,0.00042465,30]
[378778411,1755012881570,-400.0,0.00042465,30]
[378778412,1755012881580,-400.0,0.00042465,30]
[378778413,1755012881590,-400.0,0.00042465,30]
[378778414,1755012881600,-400.0,0.00042465,30]
[378778415,1755012881609,-400.0,0.00042465,30]
[378778416,1755012881619,-400.0,0.00042465,30]
[378778417,1755012881629,-453.99,0.00042465,30]
[378778418,1755012881638,-400.0,0.00042465,30]
[378778419,1755012881648,-400.0,0.00042465,30]
[378778420,1755012881659,-400.0,0.00042465,30]
[378778421,1755012881674,-400.0,0.00042465,30]
[378778422,1755012881684,-400.0,0.00042465,30]
[378778423,1755012881693,-400.0,0.00042465,30]
[378778424,1755012881703,-400.0,0.00042465,30]
[378778425,1755012881712,-400.0,0.00042465,30]
[378778426,1755012881722,-182.82,0.00042465,30]
[378778427,1755012881731,-400.0,0.00042465,30]
[378778428,1755012881740,-400.0,0.00042465,30]
[378778429,1755012881751,-1006.69,0.00042465,30]
[378778430,1755012881760,-400.0,0.00042465,30]
[378778431,1755012881770,-400.0,0.00042465,30]
[378778432,1755012881780,-400.0,0.00042465,30]
[378778433,1755012881789,-400.0,0.00042465,30]
[378778434,1755012881800,-400.0,0.00042465,30]
[378778435,1755012881810,-400.0,0.00042465,30]
[378778436,1755012881819,-400.0,0.00042465,30]
[378778437,1755012881829,-576.02,0.00042465,30]
[378778438,1755012881839,-400.0,0.00042465,30]
[378778439,1755012881849,-190.78018,0.00042465,30]
[378778440,1755012881860,-334.638899,0.00042465,30]
[378778441,1755012881871,-400.0,0.00042465,30]
[378778442,1755012881881,-400.0,0.00042465,30]
[378778443,1755012881891,-400.0,0.00042465,30]
[378778444,1755012881901,-400.0,0.00042465,30]
[378778445,1755012881912,-400.0,0.00042465,30]
[378778446,1755012881922,-400.0,0.00042465,30]
[378778447,1755012881932,-400.0,0.00042465,30]
[378778448,1755012881942,-400.0,0.00042465,30]
[378778449,1755012881952,-400.0,0.00042465,30]
[378778450,1755012881962,-400.0,0.00042465,30]
[378778451,1755012881972,-400.0,0.00042465,30]
[378778452,1755012881982,-618.79,0.00042465,30]
[378778453,1755012881992,-400.0,0.00042465,30]
[378778454,1755012882003,-400.0,0.00042465,30]
[378778455,1755012882015,-333.837499,0.00042465,30]
[378778456,1755012882025,-400.0,0.00042465,30]
[378778457,1755012882035,-400.0,0.00042465,30]
[378778458,1755012882045,-400.0,0.00042465,30]
[378778459,1755012882055,-400.0,0.00042465,30]
[378778460,1755012882064,-400.0,0.00042465,30]
[378778461,1755012882075,-449.55,0.00042465,30]
[378778462,1755012882084,-617.61,0.00042465,30]
[378778463,1755012882093,-400.0,0.00042465,30]
[378778464,1755012882103,-400.0,0.00042465,30]
[378778465,1755012882113,-1339.18,0.00042465,30]
[378778466,1755012882123,-400.0,0.00042465,30]
[378778467,1755012882133,-400.0,0.00042465,30]
[378778468,1755012882142,-400.0,0.00042465,30]
[378778469,1755012882152,-400.0,0.00042465,30]
[378778470,1755012882161,-457.06,0.00042465,30]
[378778471,1755012882171,-400.0,0.00042465,30]
[378778472,1755012882180,-400.0,0.00042465,30]
[378778473,1755012882190,-400.0,0.00042465,30]
[378778474,1755012882199,-400.0,0.00042465,30]
[378778475,1755012882209,-400.0,0.00042465,30]
[378778476,1755012882219,-400.0,0.00042465,30]
[378778477,1755012882228,-400.0,0.00042465,30]
[378778478,1755012882238,-574.47,0.00042465,30]
[378778479,1755012882247,-400.0,0.00042465,30]
[378778480,1755012882258,-473.0,0.00042465,30]
[378778481,1755012882271,-215.21185,0.00042465,30]
[378778482,1755012882280,-400.0,0.00042465,30]
[378778483,1755012882290,-400.0,0.00042465,30]
[378778484,1755012882300,-400.0,0.00042465,30]
[378778485,1755012882309,-215.21185,0.00042465,30]
[378778486,1755012882319,-400.0,0.00042465,30]
[378778487,1755012882328,-400.0,0.00042465,30]
[378778488,1755012882340,-469.33,0.00042465,30]
[378778489,1755012882350,-400.0,0.00042465,30]
[378778490,1755012882360,-400.0,0.00042465,30]
[378778491,1755012882370,-400.0,0.00042465,30]
[378778492,1755012882380,-400.0,0.00042465,30]
[378778493,1755012882389,-400.0,0.00042465,30]
[378778494,1755012882399,-400.0,0.00042465,30]
[378778495,1755012882410,-504.64,0.00042465,30]
[378778496,1755012882420,-400.0,0.00042465,30]
[378778497,1755012882430,-400.0,0.00042465,30]
[378778498,1755012882440,-400.0,0.00042465,30]
[378778499,1755012882450,-400.0,0.00042465,30]
[378778500,1755012882460,-400.0,0.00042465,30]
[378778501,1755012882470,-400.0,0.00042465,30]
[378778502,1755012882480,-400.0,0.00042465,30]
[378778503,1755012882489,-400.0,0.00042465,30]
[378778504,1755012882502,-400.0,0.00042465,30]
[378778505,1755012882511,-540.74,0.00042465,30]
[378778506,1755012882522,-400.0,0.00042465,30]
[378778507,1755012882532,-400.0,0.00042465,30]
[378778508,1755012882542,-400.0,0.00042465,30]
[378778509,1755012882552,-454.61,0.00042465,30]
[378778510,1755012882561,-400.0,0.00042465,30]
[378778511,1755012882572,-400.0,0.00042465,30]
[378778512,1755012882581,-400.0,0.00042465,30]
[378778513,1755012882591,-400.0,0.00042465,30]
[378778514,1755012882601,-400.0,0.00042465,30]
[378778515,1755012882611,-400.0,0.00042465,30]
[378778516,1755012882620,-400.0,0.00042465,30]
[378778517,1755012882630,-576.28,0.00042465,30]
[378778518,1755012882640,-400.0,0.00042465,30]
[378778519,1755012882649,-400.0,0.00042465,30]
[378778520,1755012882659,-400.0,0.00042465,30]
[378778521,1755012882669,-400.0,0.00042465,30]
[378778522,1755012882681,-400.0,0.00042465,30]
[378778523,1755012882691,-400.0,0.00042465,30]
[378778524,1755012882701,-400.0,0.00042465,30]
[378778525,1755012882711,-400.0,0.00042465,30]
[378778526,1755012882721,-400.0,0.00042465,30]
[378778527,1755012882730,-400.0,0.00042465,30]
[378778528,1755012882740,-400.0,0.00042465,30]
[378778529,1755012882751,-400.0,0.00042465,30]
[378778530,1755012882760,-400.0,0.00042465,30]
[378778531,1755012882770,-400.0,0.00042465,30]
[378778532,1755012882780,-400.0,0.00042465,30]
[378778533,1755012882790,-400.0,0.00042465,30]
[378778534,1755012882800,-524.25,0.00042465,30]
[378778535,1755012882809,-400.0,0.00042465,30]
[378778536,1755012882819,-400.0,0.00042465,30]
[378778537,1755012882829,-435.91915822,0.00042465,30]
[378778538,1755012882839,-400.0,0.00042465,30]
[378778539,1755012882848,-400.0,0.00042465,30]
[378778540,1755012882858,-400.0,0.00042465,30]
[378778541,1755012882867,-643.59,0.00042465,30]
[378778542,1755012882877,-678.2,0.00042465,30]
[378778543,1755012882887,-400.0,0.00042465,30]
[378778544,1755012882896,-423.48,0.00042465,30]
[378778545,1755012882906,-427.54,0.00042465,30]
[378778546,1755012882915,-400.0,0.00042465,30]
[378778547,1755012882926,-102.22829929,0.00042465,30]
[378778548,1755012883170,-400.0,0.00041095,30]
[378778549,1755012883180,-400.0,0.00041095,30]
[378778550,1755012883189,-400.0,0.00041095,30]
[378778551,1755012883199,-170.43961412,0.00041095,30]
[378778552,1755012883928,-270.39038588,0.00041095,30]
[378778553,1755012883939,-400.0,0.00041369,30]
[378778554,1755012883950,-400.0,0.00041369,30]
[378778555,1755012883961,-499.26,0.00041369,30]
[378778556,1755012883973,-400.0,0.00041643,30]
[378778557,1755012883984,-400.0,0.00041643,30]
[378778558,1755012883995,-400.0,0.00041917,30]
[378778559,1755012884008,-445.95,0.00041917,30]
[378778560,1755012884020,-380.70785321,0.00042191,30]
[378778561,1755012884033,-19.29214679,0.00042191,30]
[378778562,1755012884045,-297.77170071,0.00042465,30]
[378778563,1755012884057,-400.0,0.00042465,30]
[378778564,1755012884067,-482.0340525,0.00042465,30]
[378778565,1755012884577,-400.0,0.00041095,30]
[378778566,1755012884587,-400.0,0.00041095,30]
[378778567,1755012884597,-400.0,0.00041095,30]
[378778568,1755012884606,-114.7739995,0.00041095,30]
[378778569,1755012884619,-285.2260005,0.00041095,30]
[378778570,1755012884629,-400.0,0.00041095,30]
[378778571,1755012884640,-206.6741433,0.00041095,30]
[378778572,1755012884667,-193.3258567,0.00041095,30]
[378778573,1755012884678,-400.0,0.00041095,30]
[378778574,1755012884689,-400.0,0.00041369,30]
[378778575,1755012884699,-241.34449338,0.00041369,30]
[378778576,1755012886403,-158.65550662,0.00041369,30]
[378778577,1755012886414,-400.0,0.00041369,30]
[378778578,1755012886423,-400.0,0.00041369,30]
[378778579,1755012886433,-400.0,0.00041369,30]
[378778580,1755012886443,-156.98,0.00041643,30]
[378778581,1755012886452,-276.49,0.00041643,30]
[378778582,1755012886829,-400.0,0.00041643,30]
[378778583,1755012886847,-400.0,0.00041917,30]
[378778584,1755012886861,-451.84,0.00042191,30]
[378778585,1755012886871,-192.1059475,0.00042465,30]
[378778586,1755012886881,-400.0,0.00042465,30]
[378778587,1755012886891,-400.0,0.00042465,30]
[378778588,1755012886901,-400.0,0.00042465,30]
[378778589,1755012886911,-400.0,0.00042465,30]
[378778590,1755012886922,-400.0,0.00042465,30]
[378778591,1755012886932,-400.0,0.00042465,30]
[378778592,1755012886942,-400.0,0.00042465,30]
[378778593,1755012886952,-400.0,0.00042465,30]
[378778594,1755012886962,-400.0,0.00042465,30]
[378778595,1755012886972,-400.0,0.00042465,30]
[378778596,1755012886982,-400.0,0.00042465,30]
[378778597,1755012886991,-400.0,0.00042465,30]
[378778598,1755012887003,-400.0,0.00042465,30]
[378778599,1755012887013,-400.0,0.00042465,30]
[378778600,1755012887023,-400.0,0.00042465,30]
[378778601,1755012887033,-400.0,0.00042465,30]
[378778602,1755012887043,-400.0,0.00042465,30]
[378778603,1755012887053,-400.0,0.00042465,30]
[378778604,1755012887063,-400.0,0.00042465,30]
[378778605,1755012887077,-477.31,0.00042465,30]
[378778606,1755012887086,-400.0,0.00042465,30]
[378778607,1755012887096,-400.0,0.00042465,30]
[378778608,1755012887106,-400.0,0.00042465,30]
[378778609,1755012887116,-400.0,0.00042465,30]
[378778610,1755012887126,-400.0,0.00042465,30]
[378778611,1755012887136,-445.18,0.00042465,30]
[378778612,1755012887146,-400.0,0.00042465,30]
[378778613,1755012887155,-400.0,0.00042465,30]
[378778614,1755012887165,-400.0,0.00042465,30]
[378778615,1755012887175,-400.0,0.00042465,30]
[378778616,1755012887184,-400.0,0.00042465,30]
[378778617,1755012887194,-400.0,0.00042465,30]
[378778618,1755012887203,-500.16,0.00042465,30]
[378778619,1755012887213,-400.0,0.00042465,30]
[378778620,1755012887223,-400.0,0.00042465,30]
[378778621,1755012887232,-400.0,0.00042465,30]
[378778622,1755012887242,-400.0,0.00042465,30]
[378778623,1755012887255,-400.0,0.00042465,30]
[378778624,1755012887266,-400.0,0.00042465,30]
[378778625,1755012887276,-513.82,0.00042465,30]
[378778626,1755012887285,-270.62,0.00042465,30]
[378778627,1755012887295,-400.0,0.00042465,30]
[378778628,1755012887306,-400.0,0.00042465,30]
[378778629,1755012887315,-264.26637148,0.00042465,30]
[378778630,1755012887352,-135.73362852,0.00042465,30]
[378778631,1755012887361,-400.0,0.00042465,30]
[378778632,1755012887371,-400.0,0.00042465,30]
[378778633,1755012887380,-400.0,0.00042465,30]
[378778634,1755012887390,-537.93,0.00042465,30]
[378778635,1755012887399,-400.0,0.00042465,30]
[378778636,1755012887408,-468.18,0.00042465,30]
[378778637,1755012887418,-519.88,0.00042465,30]
[378778638,1755012887428,-400.0,0.00042465,30]
[378778639,1755012887437,-400.0,0.00042465,30]
[378778640,1755012887447,-400.0,0.00042465,30]
[378778641,1755012887455,-400.0,0.00042465,30]
[378778642,1755012887465,-400.0,0.00042465,30]
[378778643,1755012887474,-634.44,0.00042465,30]
[378778644,1755012887486,-400.0,0.00042465,30]
[378778645,1755012887496,-400.0,0.00042465,30]
[378778646,1755012887507,-400.0,0.00042465,30]
[378778647,1755012887516,-400.0,0.00042465,30]
[378778648,1755012887526,-400.0,0.00042465,30]
[378778649,1755012887536,-400.0,0.00042465,30]
[378778650,1755012887546,-400.0,0.00042465,30]
[378778651,1755012887556,-412.32,0.00042465,30]
[378778652,1755012887566,-641.06,0.00042465,30]
[378778653,1755012887575,-400.0,0.00042465,30]
[378778654,1755012887584,-400.0,0.00042465,30]
[378778655,1755012887594,-400.0,0.00042465,30]
[378778656,1755012887603,-400.0,0.00042465,30]
[378778657,1755012887612,-400.0,0.00042465,30]
[378778658,1755012887622,-238.05398183,0.00042465,30]
[378778659,1755012887634,-68.01601817,0.00042465,30]
[378778660,1755012887644,-212.43398183,0.00042465,30]
[378778661,1755012887659,-187.56601817,0.00042465,30]
[378778662,1755012887668,-187.22,0.00042465,30]
[378778663,1755012887678,-412.69,0.00042465,30]
[378778664,1755012887687,-400.0,0.00042465,30]
[378778665,1755012887697,-400.0,0.00042465,30]
[378778666,1755012887706,-400.0,0.00042465,30]
[378778667,1755012887715,-400.0,0.00042465,30]
[378778668,1755012887724,-400.0,0.00042465,30]
[378778669,1755012887734,-400.0,0.00042465,30]
[378778670,1755012887743,-400.0,0.00042465,30]
[378778671,1755012887753,-400.0,0.00042465,30]
[378778672,1755012887762,-400.0,0.00042465,30]
[378778673,1755012887771,-148.27398158,0.00042465,30]
[378778675,1755012921474,246.74,0.00013699,2]
[378778676,1755012957508,199.99998099,0.00037274,30]
[378778677,1755012961984,1800.0,0.00025509,120]
[378778678,1755012963173,1000.0,0.00020899,3]
[378778727,1755013203260,184.13605165,0.00037287,120]
[378778744,1755013259254,954.28787465,0.00037287,30]
[378778745,1755013268630,648.13341335,0.00037287,120]
[378778746,1755013309017,-163.74,0.00036813,120]
[378778747,1755013309117,-300.0,0.00038629,120]
[378778748,1755013309478,-150.0,0.00039177,120]
[378778749,1755013309587,-150.0,0.00039725,120]
[378778750,1755013309691,-886.55,0.00039748,60]
[378778751,1755013309793,-150.0,0.00040273,120]
[378778752,1755013309884,-1000.0,0.00040821,120]
[378778753,1755013309977,-551.19,0.00040821,120]
[378778754,1755013310068,-150.0,0.00040821,120]
[378778755,1755013310158,-666.0,0.00041094,120]
[378778756,1755013310246,-666.0,0.00041094,120]
[378778757,1755013310336,-666.0,0.00041094,120]
[378778758,1755013310433,-400.54,0.00041094,120]
[378778759,1755013310527,-500.0,0.00041094,120]
[378778760,1755013310624,-500.0,0.00041094,120]
[378778761,1755013310722,-401.77,0.00041094,120]
[378778762,1755013310835,-800.0,0.00041095,120]
[378778763,1755013310949,-600.0,0.00041095,120]
[378778764,1755013311074,-160.31568172,0.000411,120]
[378778765,1755013311226,-150.0,0.00041369,120]
[378778766,1755013311325,-886.55,0.00041596,60]
[378778767,1755013311468,-22224.0,0.00041817,60]
[378778768,1755013311567,-999.0,0.00041914,120]
[378778769,1755013311705,-150.0,0.00041917,120]
[378778770,1755013311848,-150.0,0.00042464,120]
[378778771,1755013311970,-150.0,0.00042465,120]